fUST/lending_fUST_20250820
["ID","MTS","AMOUNT","RATE_DAILY","PERIOD"]
[380292858,1755640232476,-603.02915429,0.00019178,2]
[380292860,1755640232485,-460.0,0.00019178,2]
[380292862,1755640232495,-480.0,0.00019178,2]
[380292864,1755640232504,-480.0,0.00019178,2]
[380292866,1755640232513,-480.0,0.00019178,2]
[380292868,1755640232523,-480.0,0.00019178,2]
[380292870,1755640232531,-480.0,0.00019178,2]
[380292872,1755640232541,-480.0,0.00019178,2]
[380292874,1755640232550,-480.0,0.00019178,2]
[380292876,1755640232560,-480.0,0.00019178,2]
[380292878,1755640232571,-463.10003407,0.00019178,2]
[380292880,1755640232581,-480.0,0.00019178,2]
[380292881,1755640232590,-480.0,0.00019178,2]
[380292882,1755640232600,-480.0,0.00019178,2]
[380292883,1755640232609,-461.93697049,0.00019178,2]
[380292884,1755640232618,-480.0,0.00019178,2]
[380292885,1755640232627,-480.0,0.00019178,2]
[380292886,1755640232636,-480.0,0.00019178,2]
[380292887,1755640232645,-460.0,0.00019178,2]
[380292888,1755640232655,-480.0,0.00019178,2]
[380292889,1755640232664,-480.0,0.00019178,2]
[380292890,1755640232673,-603.59,0.00019178,2]
[380292891,1755640232683,-480.0,0.00019178,2]
[380292892,1755640232692,-500.0,0.00019178,2]
[380292893,1755640232702,-480.0,0.00019178,2]
[380292894,1755640232711,-480.0,0.00019178,2]
[380292895,1755640232721,-480.0,0.00019178,2]
[380292896,1755640232731,-480.0,0.00019178,2]
[380292897,1755640232740,-480.0,0.00019178,2]
[380292898,1755640232749,-480.0,0.00019178,2]
[380292899,1755640232759,-480.0,0.00019178,2]
[380292900,1755640232768,-460.0,0.00019178,2]
[380292901,1755640232778,-480.0,0.00019178,2]
[380292902,1755640232787,-480.0,0.00019178,2]
[380292903,1755640232797,-480.0,0.00019452,2]
[380292904,1755640232807,-480.0,0.00019452,2]
[380292905,1755640232816,-323.83909231,0.00019471,2]
[380292906,1755640232826,-480.0,0.00019516,2]
[380292907,1755640232835,-480.0,0.00019519,2]
[380292908,1755640232845,-480.0,0.00019519,2]
[380292909,1755640232854,-480.0,0.00019519,2]
[380292910,1755640232864,-480.0,0.00019519,2]
[380292911,1755640232876,-480.0,0.00019519,2]
[380292912,1755640232886,-480.0,0.00019519,2]
[380292913,1755640232895,-460.85063546,0.00019519,2]
[380292914,1755640232904,-480.0,0.00019519,2]
[380292915,1755640232915,-460.21875008,0.00019519,2]
[380292916,1755640232923,-480.0,0.00019519,2]
[380292917,1755640232933,-480.0,0.00019519,2]
[380292918,1755640232944,-290.55,0.0001952,2]
[380292919,1755640232953,-480.0,0.0001952,2]
[380292920,1755640232962,-480.0,0.0001952,2]
[380292921,1755640232972,-480.0,0.0001952,2]
[380292922,1755640232981,-432.901425,0.0001952,2]
[380292923,1755640232991,-480.0,0.00019521,2]
[380292924,1755640233000,-480.0,0.00019521,2]
[380292925,1755640233009,-486.08,0.00019521,2]
[380292926,1755640233020,-475.00019703,0.00019521,2]
[380292927,1755640233030,-480.0,0.00019521,2]
[380292928,1755640233039,-480.0,0.00019521,2]
[380292929,1755640233049,-579.9,0.00019521,2]
[380292930,1755640233058,-480.0,0.00019521,2]
[380292931,1755640233068,-480.0,0.00019521,2]
[380292932,1755640233078,-480.0,0.00019522,2]
[380292933,1755640233088,-480.0,0.00019522,2]
[380292934,1755640233098,-480.0,0.00019522,2]
[380292935,1755640233107,-421.53071083,0.00019522,2]
[380292936,1755640233117,-480.0,0.00019522,2]
[380292937,1755640233127,-480.0,0.00019522,2]
[380292938,1755640233137,-480.0,0.00019522,2]
[380292939,1755640233146,-480.0,0.00019522,2]
[380292940,1755640233155,-480.0,0.00019522,2]
[380292941,1755640233165,-480.0,0.00019522,2]
[380292942,1755640233175,-480.0,0.00019522,2]
[380292943,1755640233184,-480.0,0.00019522,2]
[380292944,1755640233194,-480.0,0.00019522,2]
[380292945,1755640233203,-480.0,0.00019522,2]
[380292946,1755640233213,-460.0,0.00019522,2]
[380292947,1755640233222,-480.0,0.00019522,2]
[380292948,1755640233231,-480.0,0.00019522,2]
[380292949,1755640233240,-460.92206159,0.00019522,2]
[380292950,1755640233249,-480.0,0.00019522,2]
[380292951,1755640233258,-460.0,0.00019522,2]
[380292952,1755640233267,-480.0,0.00019522,2]
[380292953,1755640233276,-480.0,0.00019522,2]
[380292954,1755640233286,-460.0,0.00019522,2]
[380292955,1755640233295,-480.0,0.00019522,2]
[380292956,1755640233305,-480.0,0.00019522,2]
[380292957,1755640233314,-480.0,0.00019522,2]
[380292958,1755640233324,-480.0,0.00019522,2]
[380292959,1755640233333,-480.0,0.00019522,2]
[380292960,1755640233342,-480.0,0.00019522,2]
[380292961,1755640233351,-480.0,0.00019522,2]
[380292962,1755640233359,-480.0,0.00019522,2]
[380292963,1755640233369,-563.8839797,0.00019522,2]
[380292964,1755640233378,-480.48922689,0.00019522,2]
[380292965,1755640233387,-480.0,0.00019522,2]
[380292966,1755640233396,-480.0,0.00019522,2]
[380292967,1755640233404,-480.0,0.00019522,2]
[380292968,1755640233414,-480.2747577,0.00019522,2]
[380292969,1755640233423,-480.0,0.00019522,2]
[380292970,1755640233431,-480.0,0.00019522,2]
[380292971,1755640233441,-480.0,0.00019522,2]
[380292972,1755640233581,-480.0,0.00019522,2]
[380292973,1755640233590,-480.0,0.00019522,2]
[380292974,1755640233600,-480.0,0.00019522,2]
[380292975,1755640233609,-480.0,0.00019522,2]
[380292976,1755640233619,-480.0,0.00019522,2]
[380292977,1755640233636,-480.0,0.00019522,2]
[380292978,1755640233646,-480.0,0.00019522,2]
[380292979,1755640233655,-480.0,0.00019522,2]
[380292980,1755640233664,-480.0,0.00019522,2]
[380292981,1755640233673,-480.0,0.00019522,2]
[380292982,1755640233683,-480.0,0.00019523,2]
[380292983,1755640233692,-480.0,0.00019523,2]
[380292984,1755640233701,-480.0,0.00019523,2]
[380292985,1755640233710,-480.0,0.00019523,2]
[380292986,1755640233719,-480.0,0.00019523,2]
[380292987,1755640233728,-480.0,0.00019523,2]
[380292988,1755640233737,-480.0,0.00019523,2]
[380292989,1755640233746,-480.0,0.00019523,2]
[380292990,1755640233755,-441.63675354,0.00019523,2]
[380292991,1755640233765,-480.0,0.00019523,2]
[380292992,1755640233775,-480.0,0.00019523,2]
[380292993,1755640233784,-480.0,0.00019523,2]
[380292994,1755640233794,-480.0,0.00019523,2]
[380292995,1755640233803,-480.0,0.00019523,2]
[380292996,1755640233813,-480.0,0.00019523,2]
[380292997,1755640233823,-480.0,0.00019523,2]
[380292998,1755640233832,-480.0,0.00019523,2]
[380292999,1755640233841,-480.0,0.00019523,2]
[380293000,1755640233851,-480.0,0.00019523,2]
[380293001,1755640233860,-243.55038834,0.00019523,2]
[380293002,1755640233869,-480.0,0.00019523,2]
[380293003,1755640233881,-300.0,0.0001956,20]
[380293004,1755640233890,-300.0,0.0001956,20]
[380293005,1755640233900,-300.0,0.0001956,20]
[380293006,1755640233909,-300.0,0.00019561,20]
[380293007,1755640233919,-300.0,0.00019561,20]
[380293008,1755640233929,-246.78,0.00019726,2]
[380293009,1755640233938,-480.0,0.00019793,2]
[380293010,1755640233948,-480.0,0.00019795,2]
[380293011,1755640233958,-187.221518,0.00019863,2]
[380293012,1755640233968,-2458.40189317,0.000199,2]
[380293013,1755640233977,-300.0,0.00019909,20]
[380293014,1755640233986,-300.0,0.00019909,20]
[380293015,1755640233996,-191.57406264,0.0002,2]
[380293016,1755640234006,-480.0,0.00020067,2]
[380293017,1755640234016,-480.0,0.00020069,2]
[380293018,1755640234025,-269.296941,0.00020187,2]
[380293019,1755640234035,-176.28,0.00020303,3]
[380293020,1755640234044,-528.88,0.00020303,3]
[380293021,1755640234053,-2458.40189288,0.00020313,2]
[380293022,1755640234063,-480.0,0.00020341,2]
[380293023,1755640234072,-480.0,0.00020343,2]
[380293024,1755640234082,-352.56,0.00020607,3]
[380293025,1755640234091,-480.0,0.00020615,2]
[380293026,1755640234101,-480.0,0.00020617,2]
[380293027,1755640234110,-967.0,0.00020693,2]
[380293028,1755640234119,-423.07,0.00020715,3]
[380293029,1755640234128,-480.0,0.00020724,2]
[380293030,1755640234138,-480.0,0.00020724,2]
[380293031,1755640234147,-2458.40189288,0.00020725,2]
[380293032,1755640234157,-160.0,0.00020811,2]
[380293033,1755640234166,-216.8835046,0.00020811,2]
[380293034,1755640234176,-843.93972674,0.00020811,2]
[380293035,1755640234185,-5738.67933682,0.00020811,2]
[380293073,1755640238101,-1808.23471545,0.00020811,2]
[380293115,1755640242998,-2319.53915094,0.00020811,2]
[380293122,1755640246644,-215.79176414,0.00020812,2]
[380293123,1755640246665,-480.0,0.00020889,2]
[380293124,1755640246681,-480.0,0.00020891,2]
[380293125,1755640246693,-420.0,0.00020898,2]
[380293126,1755640246704,-160.0,0.00020986,2]
[380293127,1755640246715,-2458.40189288,0.00021138,2]
[380293128,1755640246726,-480.0,0.00021163,2]
[380293129,1755640246736,-480.0,0.00021165,2]
[380293130,1755640246746,-480.0,0.00021437,2]
[380293131,1755640246755,-480.0,0.00021439,2]
[380293132,1755640246765,-232.21311493,0.00021496,2]
[380293133,1755640246775,-375.88899365,0.00021496,2]
[380293134,1755640246786,-160.0,0.00021496,2]
[380293135,1755640246796,-260.0,0.00021534,2]
[380293136,1755640246806,-1739.70423351,0.00021551,2]
[380293137,1755640246819,-422.748628,0.00021551,2]
[380293138,1755640644943,5000.0,0.000186,2]
[380293139,1755640728754,176.768248,0.00018548,2]
[380293141,1755640756995,10000.0,0.00018543,2]
[380293142,1755641251157,-357.69729965,0.000189,2]
[380293143,1755641279990,343.80273864,0.00017836,2]
[380293144,1755641352125,-494.11727628,0.000189,2]
[380293145,1755641373529,500.0,0.00028767,120]
[380293146,1755641395768,256.077422,0.00013699,2]
[380293176,1755641432255,-1170.53367535,0.000189,2]
[380293178,1755641432266,-1200.0,0.00019176,2]
[380293180,1755641432276,-300.0,0.00019176,2]
[380293181,1755641432285,-300.0,0.00019176,2]
[380293182,1755641432295,-300.0,0.00019176,2]
[380293183,1755641432304,-300.0,0.00019176,2]
[380293184,1755641432313,-1200.0,0.00019176,2]
[380293186,1755641432323,-480.0,0.00019178,2]
[380293187,1755641432332,-480.0,0.00019178,2]
[380293188,1755641432341,-3198.93214266,0.00019178,2]
[380293191,1755641432364,-3992.36345218,0.00019178,2]
[380293262,1755641438321,-42808.70440516,0.00019178,2]
[380293265,1755641438331,-480.0,0.00019452,2]
[380293267,1755641438342,-480.0,0.00019452,2]
[380293269,1755641438352,-1019.75845652,0.00019522,2]
[380293271,1755641438363,-480.0,0.00019556,2]
[380293273,1755641438373,-168.66,0.00019556,2]
[380293275,1755641438383,-184.92508115,0.00019556,2]
[380293277,1755641438394,-480.0,0.00019556,2]
[380293279,1755641438405,-480.0,0.00019558,2]
[380293282,1755641438415,-480.0,0.00019558,2]
[380293284,1755641438425,-480.0,0.00019558,2]
[380293286,1755641438435,-480.0,0.00019558,2]
[380293288,1755641438448,-480.0,0.00019558,2]
[380293290,1755641438462,-480.0,0.00019558,2]
[380293293,1755641438473,-300.0,0.0001956,20]
[380293295,1755641438484,-300.0,0.0001956,20]
[380293297,1755641438495,-300.0,0.0001956,20]
[380293299,1755641438506,-300.0,0.0001956,20]
[380293301,1755641438517,-480.0,0.00019726,2]
[380293303,1755641438527,-480.0,0.00019726,2]
[380293306,1755641438537,-480.0,0.00019832,2]
[380293308,1755641438547,-480.0,0.00019832,2]
[380293310,1755641438557,-300.0,0.00019838,20]
[380293312,1755641438566,-300.0,0.00019838,20]
[380293314,1755641438576,-300.0,0.00019838,20]
[380293316,1755641438585,-187.221518,0.00019863,2]
[380293318,1755641438595,-2058.53321204,0.000199,2]
[380293320,1755641438605,-480.0,0.0002,2]
[380293322,1755641438616,-480.0,0.0002,2]
[380293324,1755641438626,-480.0,0.00020106,2]
[380293326,1755641438637,-480.0,0.00020106,2]
[380293328,1755641438648,-256.077422,0.00020187,2]
[380293331,1755641438658,-480.0,0.00020273,2]
[380293333,1755641438669,-480.0,0.00020273,2]
[380293335,1755641438679,-190.3779078,0.00020312,2]
[380293337,1755641438688,-596.48858128,0.00020312,2]
[380293339,1755641438697,-500.0,0.00020312,2]
[380293341,1755641438707,-500.0,0.00020312,2]
[380293343,1755641438717,-500.0,0.00020312,2]
[380293345,1755641438727,-500.0,0.00020312,2]
[380293347,1755641438738,-500.0,0.00020312,2]
[380293349,1755641438748,-500.0,0.00020312,2]
[380293352,1755641438759,-500.0,0.00020312,2]
[380293354,1755641438769,-500.0,0.00020312,2]
[380293356,1755641438779,-500.0,0.00020312,2]
[380293358,1755641438789,-500.0,0.00020312,2]
[380293360,1755641438799,-420.60083793,0.00020312,2]
[380293362,1755641438808,-2058.53321177,0.00020313,2]
[380293364,1755641438818,-480.0,0.0002038,2]
[380293366,1755641438828,-480.0,0.0002038,2]
[380293368,1755641438838,-480.0,0.00020547,2]
[380293369,1755641438847,-480.0,0.00020547,2]
[380293371,1755641438857,-521.88735864,0.00020654,2]
[380293372,1755641438867,-480.0,0.00020654,2]
[380293374,1755641438877,-158.7577131,0.00020725,2]
[380293376,1755641438887,-151.0,0.00020725,2]
[380293377,1755641438897,-245.0,0.00020725,2]
[380293379,1755641438907,-151.55192868,0.00020725,2]
[380293380,1755641438916,-151.0,0.00020725,2]
[380293382,1755641438926,-151.0,0.00020725,2]
[380293384,1755641438935,-151.0,0.00020725,2]
[380293385,1755641438946,-151.0,0.00020725,2]
[380293387,1755641438956,-151.0,0.00020725,2]
[380293389,1755641438966,-151.0,0.00020725,2]
[380293390,1755641438976,-151.0,0.00020725,2]
[380293392,1755641438986,-151.0,0.00020725,2]
[380293393,1755641438995,-151.0,0.00020725,2]
[380293395,1755641439006,-151.0,0.00020725,2]
[380293397,1755641439015,-151.0,0.00020725,2]
[380293398,1755641439026,-151.0,0.00020725,2]
[380293400,1755641439036,-151.0,0.00020725,2]
[380293401,1755641439046,-151.0,0.00020725,2]
[380293403,1755641439056,-2058.53321177,0.00020725,2]
[380293405,1755641439066,-232.21311493,0.00020774,2]
[380293407,1755641439076,-375.88899365,0.00020774,2]
[380293408,1755641439086,-160.0,0.00020774,2]
[380293410,1755641439096,-160.0,0.00020774,2]
[380293411,1755641439105,-216.8835046,0.00020774,2]
[380293413,1755641439115,-843.93972674,0.00020774,2]
[380293415,1755641439126,-417.15472785,0.00020775,2]
[380293417,1755641439136,-215.79176414,0.00020775,2]
[380293418,1755641439145,-500.0,0.0002078,2]
[380293420,1755641439155,-500.0,0.0002078,2]
[380293422,1755641439164,-500.0,0.0002078,2]
[380293424,1755641439174,-569.61629274,0.00020789,2]
[380293425,1755641439184,-151.0,0.00020808,2]
[380293426,1755641439194,-151.0,0.00020808,2]
[380293428,1755641439204,-151.0,0.00020809,2]
[380293430,1755641439214,-151.0,0.00020809,2]
[380293431,1755641439224,-151.0,0.00020809,2]
[380293433,1755641439234,-916.0,0.00020809,2]
[380293435,1755641439244,-151.0,0.00020809,2]
[380293437,1755641439254,-152.21211499,0.00020809,2]
[380293438,1755641439263,-151.0,0.00020809,2]
[380293440,1755641439273,-151.0,0.00020809,2]
[380293442,1755641439282,-151.0,0.00020809,2]
[380293443,1755641439292,-151.0,0.00020809,2]
[380293445,1755641439302,-151.0,0.00020809,2]
[380293447,1755641439312,-228.91242582,0.00020809,2]
[380293448,1755641439322,-151.0,0.00020809,2]
[380293450,1755641439332,-151.0,0.00020809,2]
[380293452,1755641439341,-480.0,0.00020821,2]
[380293453,1755641439351,-480.0,0.00020821,2]
[380293455,1755641439362,-509.4840268,0.0002085,2]
[380293457,1755641439372,-500.0,0.00020863,2]
[380293459,1755641439382,-500.0,0.00020863,2]
[380293460,1755641439391,-500.0,0.00020863,2]
[380293474,1755641439578,-480.0,0.00020928,2]
[380293476,1755641439594,-500.0,0.00020929,2]
[380293477,1755641439603,-164.47246683,0.00020941,2]
[380293479,1755641439613,-164.47246683,0.00020941,2]
[380293481,1755641439622,-1076.44,0.0002098,10]
[380293482,1755641439631,-1550.08,0.0002099,10]
[380293484,1755641439640,-1291.73,0.0002099,10]
[380293486,1755641439649,-257.13063666,0.00020999,2]
[380293487,1755641439658,-270.49883543,0.00020999,2]
[380293489,1755641439667,-151.0,0.00020999,2]
[380293491,1755641439676,-151.0,0.00020999,2]
[380293492,1755641439686,-151.0,0.00020999,2]
[380293494,1755641439695,-150.0,0.00021,2]
[380293496,1755641439704,-5000.0,0.00021,2]
[380293497,1755641439714,-500.0,0.00021036,2]
[380293499,1755641439723,-500.0,0.00021036,2]
[380293501,1755641439732,-500.0,0.00021036,2]
[380293502,1755641439742,-916.0,0.00021083,2]
[380293504,1755641439751,-151.0,0.00021083,2]
[380293505,1755641439760,-151.0,0.00021083,2]
[380293507,1755641439769,-151.0,0.00021083,2]
[380293509,1755641439778,-480.0,0.00021095,2]
[380293510,1755641439787,-480.0,0.00021095,2]
[380293512,1755641439796,-2058.53321177,0.00021138,2]
[380293514,1755641439805,-480.0,0.00021202,2]
[380293515,1755641439815,-151.0,0.00021273,2]
[380293518,1755641439824,-151.0,0.00021273,2]
[380293520,1755641439833,-916.0,0.00021357,2]
[380293521,1755641439842,-198.0,0.00021357,2]
[380293523,1755641439851,-151.0,0.00021357,2]
[380293525,1755641439860,-198.0,0.00021357,2]
[380293526,1755641439869,-480.0,0.00021369,2]
[380293528,1755641439878,-480.0,0.00021369,2]
[380293529,1755641439887,-170.67120866,0.00021375,2]
[380293531,1755641439896,-480.0,0.00021436,2]
[380293534,1755641439905,-151.0,0.00021436,2]
[380293535,1755641439914,-151.0,0.00021436,2]
[380293537,1755641439923,-151.0,0.00021436,2]
[380293539,1755641439932,-151.0,0.00021436,2]
[380293540,1755641439942,-480.0,0.00021476,2]
[380293542,1755641439951,-897.04,0.00021508,10]
[380293544,1755641439960,-297.0,0.00021547,2]
[380293545,1755641439969,-151.0,0.00021547,2]
[380293547,1755641439978,-2058.53321177,0.00021551,2]
[380293549,1755641439987,-160.0,0.00021556,2]
[380293550,1755641439996,-916.0,0.00021631,2]
[380293552,1755641440004,-151.0,0.00021631,2]
[380293554,1755641440014,-480.0,0.00021643,2]
[380293555,1755641440023,-480.0,0.00021643,2]
[380293557,1755641440032,-153.91704026,0.0002171,2]
[380293559,1755641440041,-151.0,0.0002171,2]
[380293560,1755641440050,-151.0,0.0002171,2]
[380293562,1755641440060,-480.0,0.0002175,2]
[380293564,1755641440069,-151.0,0.00021821,2]
[380293565,1755641440078,-916.0,0.00021905,2]
[380293567,1755641440087,-151.0,0.00021905,2]
[380293569,1755641440096,-480.0,0.00021917,2]
[380293571,1755641440105,-480.0,0.00021917,2]
[380293572,1755641440115,-600.0,0.00021929,20]
[380293574,1755641440124,-2058.53321177,0.00021963,2]
[380293576,1755641440133,-151.08601362,0.00021975,2]
[380293577,1755641440142,-151.0,0.00021984,2]
[380293579,1755641440151,-151.0,0.00021984,2]
[380293581,1755641440160,-480.0,0.00021984,2]
[380293582,1755641440169,-500.0,0.00021988,2]
[380293584,1755641440178,-472.68105834,0.00021988,2]
[380293586,1755641440187,-7287.62751683,0.00021989,2]
[380293587,1755641440196,-137903.16167858,0.00021989,2]
[380293589,1755641440205,-1899.15,0.00022,7]
[380293591,1755641440214,-179.0,0.00022,2]
[380293592,1755641440224,-480.0,0.00022024,2]
[380293594,1755641440233,-198.0,0.00022095,2]
[380293596,1755641440243,-260.0,0.00022104,2]
[380293598,1755641440252,-916.0,0.00022179,2]
[380293599,1755641440261,-480.0,0.00022191,2]
[380293601,1755641440271,-480.0,0.00022191,2]
[380293603,1755641440280,-151.0,0.00022258,2]
[380293604,1755641440288,-428.76,0.00022298,2]
[380293606,1755641440297,-1331.900067,0.00022353,2]
[380293608,1755641440306,-2058.53321177,0.00022376,2]
[380293609,1755641440315,-916.0,0.00022453,2]
[380293611,1755641440325,-480.0,0.00022465,2]
[380293613,1755641440334,-418.96,0.00022465,2]
[380293614,1755641440343,-1504.45298125,0.00022602,2]
[380293616,1755641440352,-360.0,0.00022651,2]
[380293618,1755641440362,-916.0,0.00022727,2]
[380293619,1755641440371,-480.0,0.00022739,2]
[380293621,1755641440380,-2058.53321177,0.00022789,2]
[380293623,1755641440389,-154.248594,0.00022802,2]
[380293624,1755641440398,-160.842982,0.00022904,2]
[380293626,1755641440407,-153.0,0.00022904,2]
[380293628,1755641440416,-153.0,0.00022904,2]
[380293629,1755641440425,-153.0,0.00022904,2]
[380293631,1755641440435,-153.0,0.00022904,2]
[380293633,1755641440443,-587.5886558,0.00022904,2]
[380293634,1755641440453,-1331.900067,0.0002297,2]
[380293636,1755641440462,-176.28,0.00022974,3]
[380293638,1755641440471,-528.84,0.00022974,3]
[380293639,1755641440482,-151.0,0.00022984,2]
[380293641,1755641440491,-151.0,0.00022984,2]
[380293643,1755641440500,-17842.522448,0.00022984,2]
[380293644,1755641440509,-151.0,0.00022984,2]
[380293646,1755641440519,-2264.10087163,0.00022984,2]
[380293648,1755641440528,-151.0,0.00022984,2]
[380293649,1755641440537,-151.0,0.00022984,2]
[380293651,1755641440546,-265.61602389,0.00022984,2]
[380293653,1755641440555,-151.0,0.00022984,2]
[380293655,1755641440566,-151.0,0.00022984,2]
[380293656,1755641440576,-151.0,0.00022984,2]
[380293658,1755641440586,-151.0,0.00022984,2]
[380293659,1755641440595,-1000.0,0.00022984,2]
[380293661,1755641440605,-151.0,0.00022984,2]
[380293663,1755641440615,-199.00176164,0.00022984,2]
[380293665,1755641440624,-151.0,0.00022984,2]
[380293666,1755641440633,-226.22943837,0.00022984,2]
[380293668,1755641440642,-160.0,0.00023,2]
[380293670,1755641440652,-916.0,0.00023001,2]
[380293671,1755641440661,-480.0,0.00023013,2]
[380293673,1755641440670,-438.0,0.00023148,2]
[380293675,1755641440679,-460.0,0.00023199,2]
[380293676,1755641440688,-2058.53321177,0.00023201,2]
[380293678,1755641440698,-916.0,0.00023275,2]
[380293680,1755641440707,-480.0,0.00023287,2]
[380293681,1755641440717,-250.0,0.00023299,2]
[380293683,1755641440726,-12500.0,0.00023342,7]
[380293685,1755641440735,-12685.85563623,0.00023342,7]
[380293686,1755641440744,-160.0,0.00023342,7]
[380293688,1755641440753,-417.15472785,0.00023342,7]
[380293690,1755641440762,-375.88899365,0.00023342,7]
[380293691,1755641440772,-1899.15,0.000234,7]
[380293693,1755641440781,-438.0,0.00023404,2]
[380293695,1755641440791,-24044.77690461,0.00023526,3]
[380293697,1755641440800,-6574.30733235,0.00023526,3]
[380293698,1755641440809,-160.0,0.00023526,3]
[380293700,1755641440819,-417.15472785,0.00023526,3]
[380293702,1755641440828,-375.88899365,0.00023526,3]
[380293703,1755641440838,-232.21311493,0.00023526,3]
[380293705,1755641440847,-160.0,0.0002353,3]
[380293707,1755641440856,-168.0,0.00023539,2]
[380293708,1755641440866,-916.0,0.00023549,2]
[380293710,1755641440875,-3442.77671924,0.00023557,2]
[380293712,1755641440884,-480.0,0.00023561,2]
[380293713,1755641440893,-1331.900067,0.00023586,2]
[380293715,1755641440903,-5504.01,0.000236,7]
[380293717,1755641440912,-2058.53321177,0.00023614,2]
[380293718,1755641440920,-370000.0,0.00023626,2]
[380293720,1755641440930,-438.0,0.00023657,2]
[380293722,1755641440939,-500.0,0.00023673,2]
[380293723,1755641440949,-158.24676268,0.00023673,2]
[380293725,1755641440958,-500.0,0.00023673,2]
[380293727,1755641440968,-500.0,0.00023673,2]
[380293729,1755641440977,-500.0,0.00023673,2]
[380293730,1755641440987,-500.0,0.00023673,2]
[380293732,1755641440996,-500.0,0.00023673,2]
[380293734,1755641441005,-1504.45298125,0.00023685,2]
[380293735,1755641441015,-39577.67,0.000237,2]
[380293737,1755641441024,-13788.19,0.000237,7]
[380293739,1755641441034,-160.92920943,0.0002371,2]
[380293741,1755641441044,-1609.29209431,0.00023725,2]
[380293742,1755641441054,-153.0,0.00023726,2]
[380293744,1755641441064,-153.0,0.00023726,2]
[380293746,1755641441074,-1609.29209431,0.00023739,2]
[380293747,1755641441084,-560.0,0.00023747,2]
[380293749,1755641441093,-160.92920943,0.00023766,2]
[380293751,1755641441103,-151.0,0.000238,9]
[380293753,1755641441113,-916.0,0.00023823,2]
[380293754,1755641441122,-1200.0,0.00023825,2]
[380293756,1755641441131,-480.0,0.00023835,2]
[380293758,1755641441141,-168.0,0.00023836,2]
[380293759,1755641441151,-168.0,0.00023886,2]
[380293761,1755641441161,-2022.34825128,0.000239,2]
[380293763,1755641441171,-153.0,0.00023904,2]
[380293765,1755641441181,-151.0,0.00024,7]
[380293766,1755641441191,-12657.86758977,0.00024,7]
[380293768,1755641441200,-417.15472785,0.00024,7]
[380293770,1755641441209,-232.21311493,0.00024,7]
[380293771,1755641441218,-160.0,0.00024,7]
[380293773,1755641441228,-2058.53321177,0.00024027,2]
[380293775,1755641441238,-916.0,0.00024097,2]
[380293777,1755641441247,-151.0,0.000241,9]
[380293778,1755641441257,-480.0,0.00024109,2]
[380293780,1755641441266,-720.0,0.00024122,20]
[380293782,1755641441276,-513.1723548,0.00024152,2]
[380293783,1755641441285,-1331.900067,0.00024203,2]
[380293785,1755641441295,-1000.0,0.00024221,2]
[380293787,1755641441305,-266.90847773,0.00024221,2]
[380293789,1755641441314,-1000.0,0.00024221,2]
[380293790,1755641441323,-1000.0,0.00024221,2]
[380293792,1755641441333,-154.248594,0.00024234,2]